[Event "Early-Titled-Tuesday-Blitz-May-07-2024"]
[Site "Chess.com"]
[Date "2024.05.07"]
[Round "1"]
[White "Eloist"]
[Black "ValentinDragnev"]
[Result "0-1"]
[WhiteElo "2417"]
[BlackElo "2728"]
[TimeControl "180+1"]
[EndTime "8:07:51 PDT"]
[Termination "ValentinDragnev won on time"]

1. e4 {[%clk 0:02:59.3]} 1... d6 {[%clk 0:03:00.7]} 2. d4 {[%clk 0:02:58.6]}
2... Nf6 {[%clk 0:03:01.4]} 3. Nc3 {[%clk 0:02:58.5]} 3... e5 {[%clk 0:03:02.1]}
4. dxe5 {[%clk 0:02:58.6]} 4... dxe5 {[%clk 0:03:03]} 5. Qxd8+ {[%clk
0:02:58.5]} 5... Kxd8 {[%clk 0:03:03.9]} 6. Bc4 {[%clk 0:02:58.4]} 6... Be6
{[%clk 0:03:02.5]} 7. Bxe6 {[%clk 0:02:58]} 7... fxe6 {[%clk 0:03:03.4]} 8. f3
{[%clk 0:02:58.1]} 8... Nbd7 {[%clk 0:02:58.4]} 9. Nh3 {[%clk 0:02:56.8]} 9...
Bc5 {[%clk 0:02:54.8]} 10. Nf2 {[%clk 0:02:54.7]} 10... Ke7 {[%clk 0:02:52.8]}
11. Nd3 {[%clk 0:02:54.3]} 11... Bd4 {[%clk 0:02:53.1]} 12. Nd1 {[%clk
0:02:47.7]} 12... a5 {[%clk 0:02:49.6]} 13. c3 {[%clk 0:02:45.7]} 13... Bb6
{[%clk 0:02:50.1]} 14. Be3 {[%clk 0:02:43.6]} 14... c5 {[%clk 0:02:18.8]} 15. c4
{[%clk 0:02:28.6]} 15... Ba7 {[%clk 0:02:04.1]} 16. Nc3 {[%clk 0:02:27.9]} 16...
b6 {[%clk 0:02:03.9]} 17. O-O-O {[%clk 0:02:22.8]} 17... Rad8 {[%clk 0:01:56.8]}
18. Nb5 {[%clk 0:02:19.4]} 18... Bb8 {[%clk 0:01:57.2]} 19. b3 {[%clk 0:02:13]}
19... h6 {[%clk 0:01:56.8]} 20. h4 {[%clk 0:02:06.7]} 20... Nh5 {[%clk
0:01:56.8]} 21. Rd2 {[%clk 0:01:49.5]} 21... Nf8 {[%clk 0:01:46.2]} 22. g4
{[%clk 0:01:43.3]} 22... Nf4 {[%clk 0:01:36.4]} 23. Bxf4 {[%clk 0:01:38.4]}
23... exf4 {[%clk 0:01:36.5]} 24. h5 {[%clk 0:01:24]} 24... Nh7 {[%clk
0:01:35.9]} 25. e5 {[%clk 0:01:11.6]} 25... Rhf8 {[%clk 0:01:31.5]} 26. Kc2
{[%clk 0:00:26.4]} 26... Ng5 {[%clk 0:01:31.2]} 27. Rf1 {[%clk 0:00:25.8]} 27...
Nf7 {[%clk 0:01:26.3]} 28. Re1 {[%clk 0:00:21.8]} 28... Ng5 {[%clk 0:01:25.9]}
29. Rf1 {[%clk 0:00:20.7]} 29... Rd7 {[%clk 0:01:22]} 30. Nb2 {[%clk 0:00:13.5]}
30... Rxd2+ {[%clk 0:01:15.2]} 31. Kxd2 {[%clk 0:00:14.4]} 31... Bxe5 {[%clk
0:01:15.7]} 32. Na4 {[%clk 0:00:11.2]} 32... Rb8 {[%clk 0:01:05]} 33. Ke2 {[%clk
0:00:09.5]} 33... Nf7 {[%clk 0:01:00.2]} 34. Rd1 {[%clk 0:00:09.3]} 34... Nd6
{[%clk 0:01:00.1]} 35. Nxd6 {[%clk 0:00:08.7]} 35... Bxd6 {[%clk 0:01:01]} 36.
Nc3 {[%clk 0:00:08.4]} 36... Be5 {[%clk 0:00:59]} 37. Na4 {[%clk 0:00:07.3]}
37... Bd4 {[%clk 0:00:58.2]} 38. Kd3 {[%clk 0:00:06.3]} 38... e5 {[%clk
0:00:54.2]} 39. Ke4 {[%clk 0:00:06.7]} 39... Ke6 {[%clk 0:00:54.9]} 40. Rd2
{[%clk 0:00:05.5]} 40... b5 {[%clk 0:00:46.4]} 41. cxb5 {[%clk 0:00:04.8]} 41...
Rxb5 {[%clk 0:00:47.3]} 42. Rc2 {[%clk 0:00:05]} 42... Rb4 {[%clk 0:00:37.3]}
43. Rc4 {[%clk 0:00:04.7]} 43... Rb5 {[%clk 0:00:23.7]} 44. Nc3 {[%clk
0:00:04.6]} 44... Bxc3 {[%clk 0:00:21.6]} 45. Rxc3 {[%clk 0:00:05.5]} 45... Rb4+
{[%clk 0:00:21.7]} 46. Rc4 {[%clk 0:00:05.1]} 46... Rb5 {[%clk 0:00:15.6]} 47.
Rc2 {[%clk 0:00:03.4]} 47... a4 {[%clk 0:00:15.1]} 48. Rc3 {[%clk 0:00:00.8]}
48... Rb4+ {[%clk 0:00:12.3]} 49. Rc4 {[%clk 0:00:00.6]} 49... axb3 {[%clk
0:00:12.5]} 0-1

[Event "Early-Titled-Tuesday-Blitz-May-07-2024"]
[Site "Chess.com"]
[Date "2024.05.07"]
[Round "1"]
[White "savitha1030"]
[Black "bascheyaro"]
[Result "0-1"]
[WhiteElo "2486"]
[BlackElo "2859"]
[TimeControl "180+1"]
[EndTime "8:07:52 PDT"]
[Termination "bascheyaro won by resignation"]

1. d4 {[%clk 0:02:55.5]} 1... d5 {[%clk 0:03:00]} 2. c4 {[%clk 0:02:54.9]} 2...
c6 {[%clk 0:03:00.3]} 3. Nc3 {[%clk 0:02:54.1]} 3... Nf6 {[%clk 0:03:00.2]} 4.
Nf3 {[%clk 0:02:53.6]} 4... a6 {[%clk 0:03:00.4]} 5. cxd5 {[%clk 0:02:52.3]}
5... cxd5 {[%clk 0:03:00.5]} 6. Bg5 {[%clk 0:02:52.3]} 6... Nc6 {[%clk
0:03:00.3]} 7. e3 {[%clk 0:02:50.5]} 7... e6 {[%clk 0:02:58.5]} 8. Bd3 {[%clk
0:02:50.9]} 8... Be7 {[%clk 0:02:58.1]} 9. O-O {[%clk 0:02:51.6]} 9... O-O
{[%clk 0:02:58.1]} 10. a3 {[%clk 0:02:52]} 10... Bd7 {[%clk 0:02:58.4]} 11. b4
{[%clk 0:02:51.9]} 11... Rc8 {[%clk 0:02:58.6]} 12. Rc1 {[%clk 0:02:52.6]} 12...
h6 {[%clk 0:02:58.1]} 13. Bh4 {[%clk 0:02:51.9]} 13... Ne8 {[%clk 0:02:58.3]}
14. Bg3 {[%clk 0:02:49.5]} 14... f5 {[%clk 0:02:55]} 15. Na4 {[%clk 0:02:45.2]}
15... g5 {[%clk 0:02:16.9]} 16. Nc5 {[%clk 0:02:08.2]} 16... Bxc5 {[%clk
0:02:13.1]} 17. dxc5 {[%clk 0:02:06.7]} 17... f4 {[%clk 0:02:13.1]} 18. exf4
{[%clk 0:02:06.2]} 18... gxf4 {[%clk 0:02:14]} 19. Bh4 {[%clk 0:02:06.3]} 19...
Nf6 {[%clk 0:02:11]} 20. Bb1 {[%clk 0:01:57.9]} 20... e5 {[%clk 0:02:08.4]} 21.
Bxf6 {[%clk 0:01:43.4]} 21... Qxf6 {[%clk 0:02:07.3]} 22. Qxd5+ {[%clk 0:01:44]}
22... Be6 {[%clk 0:02:07.6]} 23. Qe4 {[%clk 0:01:44.4]} 23... Qg7 {[%clk
0:01:55.4]} 24. Rfe1 {[%clk 0:01:31.6]} 24... Bh3 {[%clk 0:01:40.1]} 25. Nh4
{[%clk 0:01:29.6]} 25... Nd4 {[%clk 0:01:28.8]} 26. Qd5+ {[%clk 0:01:19.6]}
26... Rf7 {[%clk 0:01:19.7]} 27. Bg6 {[%clk 0:01:09.3]} 27... Rf8 {[%clk
0:00:31]} 28. Qxe5 {[%clk 0:01:00.5]} 28... Rf6 {[%clk 0:00:11.5]} 29. Qxd4
{[%clk 0:00:48.9]} 29... Rxg6 {[%clk 0:00:12]} 30. Qd5+ {[%clk 0:00:49.5]} 30...
Kh7 {[%clk 0:00:12.1]} 31. Nxg6 {[%clk 0:00:49.5]} 31... Qxg6 {[%clk 0:00:12.6]}
32. Qe4 {[%clk 0:00:46.1]} 32... Bf5 {[%clk 0:00:12.1]} 33. Qxb7+ {[%clk
0:00:46.2]} 33... Rf7 {[%clk 0:00:12.6]} 34. Re7 {[%clk 0:00:44.7]} 34... Be6
{[%clk 0:00:12.1]} 35. Rxf7+ {[%clk 0:00:44.7]} 35... Bxf7 {[%clk 0:00:13]} 36.
Re1 {[%clk 0:00:42.6]} 36... Kg7 {[%clk 0:00:11.3]} 37. Qe4 {[%clk 0:00:41]}
37... Qg4 {[%clk 0:00:11.1]} 38. Qe5+ {[%clk 0:00:40.9]} 38... Kg8 {[%clk
0:00:11.7]} 39. f3 {[%clk 0:00:39.9]} 39... Qg6 {[%clk 0:00:11.5]} 40. Qe4
{[%clk 0:00:38.6]} 40... Qf6 {[%clk 0:00:11.3]} 41. c6 {[%clk 0:00:38.7]} 41...
Qd6 {[%clk 0:00:10.5]} 42. Kh1 {[%clk 0:00:34.6]} 42... a5 {[%clk 0:00:10.2]}
43. b5 {[%clk 0:00:34.3]} 43... Qc5 {[%clk 0:00:09.6]} 44. a4 {[%clk 0:00:33.1]}
44... Qc3 {[%clk 0:00:09.7]} 45. h3 {[%clk 0:00:32.8]} 45... h5 {[%clk
0:00:09.4]} 46. Qe5 {[%clk 0:00:33.3]} 46... Qd2 {[%clk 0:00:08.8]} 47. c7
{[%clk 0:00:32.1]} 47... Qc2 {[%clk 0:00:06.7]} 48. Qg5+ {[%clk 0:00:31.8]}
48... Kh7 {[%clk 0:00:07]} 49. Qxh5+ {[%clk 0:00:31.8]} 49... Bxh5 {[%clk
0:00:06.3]} 50. Re7+ {[%clk 0:00:30.4]} 50... Kh6 {[%clk 0:00:05.1]} 51. Kh2
{[%clk 0:00:30.6]} 51... Bxf3 {[%clk 0:00:02.6]} 52. Re6+ {[%clk 0:00:22.6]}
52... Kg7 {[%clk 0:00:03.3]} 0-1

[Event "Early-Titled-Tuesday-Blitz-May-07-2024"]
[Site "Chess.com"]
[Date "2024.05.07"]
[Round "1"]
[White "stollenmonster"]
[Black "viktorgen2021"]
[Result "1-0"]
[WhiteElo "2919"]
[BlackElo "2507"]
[TimeControl "180+1"]
[EndTime "8:07:53 PDT"]
[Termination "stollenmonster won by resignation"]

1. e4 {[%clk 0:03:00.9]} 1... g6 {[%clk 0:02:58.7]} 2. g3 {[%clk 0:03:00.8]}
2... Bg7 {[%clk 0:02:59.2]} 3. Bg2 {[%clk 0:03:01.2]} 3... d6 {[%clk 0:02:59.9]}
4. Ne2 {[%clk 0:03:01.2]} 4... Nf6 {[%clk 0:03:00.3]} 5. O-O {[%clk 0:03:00.9]}
5... c6 {[%clk 0:02:57.9]} 6. d4 {[%clk 0:03:01.2]} 6... O-O {[%clk 0:02:56.3]}
7. c4 {[%clk 0:03:01.6]} 7... Nbd7 {[%clk 0:02:57]} 8. Nbc3 {[%clk 0:03:01.9]}
8... e5 {[%clk 0:02:57.2]} 9. h3 {[%clk 0:03:01.8]} 9... a6 {[%clk 0:02:56.7]}
10. a4 {[%clk 0:03:01.2]} 10... a5 {[%clk 0:02:56.6]} 11. Re1 {[%clk 0:03:00.9]}
11... Qc7 {[%clk 0:02:56.4]} 12. Be3 {[%clk 0:03:00]} 12... Re8 {[%clk
0:02:55.3]} 13. Qc2 {[%clk 0:02:57.4]} 13... exd4 {[%clk 0:02:53.7]} 14. Nxd4
{[%clk 0:02:58.3]} 14... Nc5 {[%clk 0:02:53.6]} 15. b3 {[%clk 0:02:55.1]} 15...
Nfd7 {[%clk 0:02:52.7]} 16. Red1 {[%clk 0:02:50.6]} 16... Na6 {[%clk 0:02:52.8]}
17. Rac1 {[%clk 0:02:49.6]} 17... Nb4 {[%clk 0:02:52.8]} 18. Qb1 {[%clk
0:02:45.9]} 18... h6 {[%clk 0:02:35.7]} 19. Na2 {[%clk 0:02:39.6]} 19... Nc5
{[%clk 0:02:25.6]} 20. Nxb4 {[%clk 0:02:39.3]} 20... axb4 {[%clk 0:02:26.5]} 21.
Bf4 {[%clk 0:02:35.6]} 21... Qe7 {[%clk 0:02:20.5]} 22. Qc2 {[%clk 0:01:20.7]}
22... Bd7 {[%clk 0:02:08.8]} 23. h4 {[%clk 0:01:11.5]} 23... Rad8 {[%clk
0:02:06.1]} 24. Nf5 {[%clk 0:01:04.8]} 24... Bxf5 {[%clk 0:01:56.1]} 25. exf5
{[%clk 0:01:03.9]} 25... Qf6 {[%clk 0:01:53.2]} 26. fxg6 {[%clk 0:00:58.3]}
26... Qxg6 {[%clk 0:01:44.7]} 27. Qxg6 {[%clk 0:00:55]} 27... fxg6 {[%clk
0:01:45.6]} 28. Rxd6 {[%clk 0:00:54.6]} 28... Nxb3 {[%clk 0:01:35.8]} 29. Rb1
{[%clk 0:00:54.5]} 29... Rxd6 {[%clk 0:01:28.5]} 30. Bxd6 {[%clk 0:00:54]} 30...
Nd2 {[%clk 0:01:28.9]} 31. Rxb4 {[%clk 0:00:50.8]} 31... Re1+ {[%clk 0:00:54.3]}
32. Kh2 {[%clk 0:00:49.8]} 32... Re2 {[%clk 0:00:54.9]} 33. Rxb7 {[%clk
0:00:43.7]} 33... Rxf2 {[%clk 0:00:54.9]} 34. Kh3 {[%clk 0:00:43.9]} 34... Nxc4
{[%clk 0:00:50.7]} 35. Bc5 {[%clk 0:00:44.4]} 35... Rf5 {[%clk 0:00:47.4]} 36.
Bg1 {[%clk 0:00:38.2]} 36... h5 {[%clk 0:00:30.4]} 37. Bxc6 {[%clk 0:00:35.9]}
37... Na5 {[%clk 0:00:30.3]} 38. Rb8+ {[%clk 0:00:33.8]} 38... Kh7 {[%clk
0:00:27.8]} 39. Be4 {[%clk 0:00:33.2]} 39... Re5 {[%clk 0:00:27.4]} 40. Bg2
{[%clk 0:00:33.3]} 40... Re1 {[%clk 0:00:23.1]} 41. Bc5 {[%clk 0:00:31.2]} 41...
Rc1 {[%clk 0:00:20.9]} 42. Be3 {[%clk 0:00:31]} 42... Re1 {[%clk 0:00:20.8]} 43.
Bf4 {[%clk 0:00:30.7]} 43... Ra1 {[%clk 0:00:17.4]} 44. Ra8 {[%clk 0:00:28.2]}
44... Rxa4 {[%clk 0:00:16.9]} 45. Ra7 {[%clk 0:00:28.9]} 45... Kh8 {[%clk
0:00:13.5]} 46. Ra8+ {[%clk 0:00:21.5]} 46... Kh7 {[%clk 0:00:13.1]} 47. Ra7
{[%clk 0:00:20.5]} 47... Kh8 {[%clk 0:00:13.4]} 48. Bd5 {[%clk 0:00:15.8]} 48...
Rd4 {[%clk 0:00:10.3]} 49. Rxa5 {[%clk 0:00:14.1]} 49... Kh7 {[%clk 0:00:09.4]}
50. Bg2 {[%clk 0:00:13]} 50... Rd7 {[%clk 0:00:07.9]} 51. Rb5 {[%clk 0:00:12.4]}
51... Bf6 {[%clk 0:00:07.7]} 52. Rb7 {[%clk 0:00:12.4]} 1-0

[Event "Early-Titled-Tuesday-Blitz-May-07-2024"]
[Site "Chess.com"]
[Date "2024.05.07"]
[Round "1"]
[White "Escudito"]
[Black "TitarovVasiliYouTube"]
[Result "0-1"]
[WhiteElo "2341"]
[BlackElo "2638"]
[TimeControl "180+1"]
[EndTime "8:07:56 PDT"]
[Termination "TitarovVasiliYouTube won by resignation"]

1. d4 {[%clk 0:02:59.2]} 1... d6 {[%clk 0:02:59.9]} 2. e4 {[%clk 0:02:56.3]}
2... e5 {[%clk 0:02:59.3]} 3. Nf3 {[%clk 0:02:52.3]} 3... Nd7 {[%clk 0:02:57.9]}
4. Bc4 {[%clk 0:02:50.4]} 4... Be7 {[%clk 0:02:46.8]} 5. dxe5 {[%clk 0:02:41.3]}
5... Nxe5 {[%clk 0:02:47.7]} 6. Nxe5 {[%clk 0:02:29.9]} 6... dxe5 {[%clk
0:02:48.1]} 7. Qh5 {[%clk 0:02:29.9]} 7... g6 {[%clk 0:02:38.7]} 8. Qxe5 {[%clk
0:02:28.2]} 8... Nf6 {[%clk 0:02:39.4]} 9. Bh6 {[%clk 0:02:18.2]} 9... Rg8
{[%clk 0:02:17.1]} 10. Nc3 {[%clk 0:01:49.3]} 10... Ng4 {[%clk 0:01:43.2]} 11.
Qf4 {[%clk 0:01:42.1]} 11... Nxh6 {[%clk 0:01:43.2]} 12. Qxh6 {[%clk 0:01:40.9]}
12... Qd4 {[%clk 0:01:28.5]} 13. Qxh7 {[%clk 0:01:32]} 13... Rf8 {[%clk
0:01:26.2]} 14. Bb3 {[%clk 0:01:16.1]} 14... Bg4 {[%clk 0:01:11.6]} 15. O-O
{[%clk 0:00:54.4]} 15... O-O-O {[%clk 0:01:11.8]} 16. Nd5 {[%clk 0:00:50.2]}
16... Bg5 {[%clk 0:01:02.7]} 17. h3 {[%clk 0:00:39.4]} 17... Be6 {[%clk
0:00:59.2]} 18. Rad1 {[%clk 0:00:35.8]} 18... Qxe4 {[%clk 0:00:59.5]} 19. Nc3
{[%clk 0:00:29.1]} 19... Qe5 {[%clk 0:00:55.4]} 20. Bxe6+ {[%clk 0:00:23.5]}
20... Qxe6 {[%clk 0:00:56.3]} 21. Rxd8+ {[%clk 0:00:20.4]} 21... Rxd8 {[%clk
0:00:56.8]} 22. Qg7 {[%clk 0:00:17.6]} 22... Bf6 {[%clk 0:00:56.2]} 23. Qh6
{[%clk 0:00:17.7]} 23... Bxc3 {[%clk 0:00:54.9]} 24. bxc3 {[%clk 0:00:16.8]}
24... Qxa2 {[%clk 0:00:55.8]} 25. Qf4 {[%clk 0:00:15.5]} 25... Qe6 {[%clk
0:00:51.5]} 26. Qa4 {[%clk 0:00:13.1]} 26... a6 {[%clk 0:00:51]} 27. Rb1 {[%clk
0:00:13.4]} 27... Rd2 {[%clk 0:00:43.8]} 28. Qb4 {[%clk 0:00:11.2]} 28... b6
{[%clk 0:00:39.7]} 29. Qf4 {[%clk 0:00:09.2]} 29... Rxc2 {[%clk 0:00:36.5]} 30.
Rd1 {[%clk 0:00:07.8]} 30... Rxc3 {[%clk 0:00:27]} 31. Qh4 {[%clk 0:00:04.6]}
31... Kb7 {[%clk 0:00:23.9]} 32. Qh8 {[%clk 0:00:03]} 32... Rc5 {[%clk
0:00:12.9]} 33. Rd8 {[%clk 0:00:02.6]} 33... Qe1+ {[%clk 0:00:12.7]} 34. Kh2
{[%clk 0:00:02.9]} 34... Qe5+ {[%clk 0:00:13.6]} 35. Qxe5 {[%clk 0:00:00.8]}
35... Rxe5 {[%clk 0:00:14.5]} 36. Rd7 {[%clk 0:00:01.4]} 36... Rf5 {[%clk
0:00:14.3]} 37. Rd4 {[%clk 0:00:01.9]} 37... Rxf2 {[%clk 0:00:14]} 38. Kg3
{[%clk 0:00:02.8]} 38... Rf5 {[%clk 0:00:14.3]} 39. h4 {[%clk 0:00:03.7]} 39...
a5 {[%clk 0:00:14.8]} 40. Kh3 {[%clk 0:00:04.2]} 40... a4 {[%clk 0:00:15.4]} 41.
g4 {[%clk 0:00:05.1]} 41... Ra5 {[%clk 0:00:15]} 42. Rd2 {[%clk 0:00:04.5]}
42... a3 {[%clk 0:00:15.5]} 43. Ra2 {[%clk 0:00:05.4]} 43... b5 {[%clk
0:00:16.2]} 44. h5 {[%clk 0:00:05]} 44... gxh5 {[%clk 0:00:16]} 45. gxh5 {[%clk
0:00:05.9]} 45... b4 {[%clk 0:00:16.7]} 46. Kg4 {[%clk 0:00:04.7]} 46... b3
{[%clk 0:00:16.9]} 47. Ra1 {[%clk 0:00:04.3]} 47... b2 {[%clk 0:00:17.5]} 48.
Rb1 {[%clk 0:00:03.7]} 48... a2 {[%clk 0:00:17.3]} 49. Rxb2+ {[%clk 0:00:03.6]}
49... Kc8 {[%clk 0:00:17.6]} 50. h6 {[%clk 0:00:03]} 50... a1=Q {[%clk
0:00:18.1]} 51. Rg2 {[%clk 0:00:01.8]} 51... Qd1+ {[%clk 0:00:17.9]} 0-1

[Event "Early-Titled-Tuesday-Blitz-May-07-2024"]
[Site "Chess.com"]
[Date "2024.05.07"]
[Round "1"]
[White "svilson23"]
[Black "TimGrutter03"]
[Result "0-1"]
[WhiteElo "2265"]
[BlackElo "2605"]
[TimeControl "180+1"]
[EndTime "8:07:58 PDT"]
[Termination "TimGrutter03 won on time"]

1. d4 {[%clk 0:02:59.2]} 1... d5 {[%clk 0:02:57.7]} 2. Bg5 {[%clk 0:02:59.2]}
2... h6 {[%clk 0:02:53.8]} 3. Bh4 {[%clk 0:02:59.3]} 3... g6 {[%clk 0:02:51.8]}
4. e3 {[%clk 0:02:59.1]} 4... Bg7 {[%clk 0:02:50.8]} 5. Bd3 {[%clk 0:02:59.3]}
5... c5 {[%clk 0:02:47]} 6. c3 {[%clk 0:02:59]} 6... Nc6 {[%clk 0:02:45.5]} 7.
Ne2 {[%clk 0:02:56.4]} 7... Nf6 {[%clk 0:02:44.3]} 8. O-O {[%clk 0:02:55.8]}
8... cxd4 {[%clk 0:02:42.9]} 9. exd4 {[%clk 0:02:55.8]} 9... O-O {[%clk
0:02:42]} 10. Nd2 {[%clk 0:02:55.4]} 10... Bg4 {[%clk 0:02:34.8]} 11. h3 {[%clk
0:02:54.3]} 11... Bd7 {[%clk 0:02:33.3]} 12. Re1 {[%clk 0:02:51.4]} 12... a6
{[%clk 0:02:30.6]} 13. a4 {[%clk 0:02:47.5]} 13... Rc8 {[%clk 0:02:26.9]} 14.
Bg3 {[%clk 0:02:25]} 14... Na5 {[%clk 0:02:24.1]} 15. Be5 {[%clk 0:02:14.8]}
15... Nc4 {[%clk 0:02:19.9]} 16. Nxc4 {[%clk 0:01:29.2]} 16... dxc4 {[%clk
0:02:20]} 17. Bc2 {[%clk 0:01:28.6]} 17... Bc6 {[%clk 0:02:13.2]} 18. Ng3 {[%clk
0:01:24.6]} 18... Qd5 {[%clk 0:02:06.9]} 19. f3 {[%clk 0:01:21.7]} 19... Qd7
{[%clk 0:02:02]} 20. Qd2 {[%clk 0:01:17.8]} 20... Rfd8 {[%clk 0:01:52.5]} 21. a5
{[%clk 0:01:17.2]} 21... Qd5 {[%clk 0:01:35.1]} 22. Qc1 {[%clk 0:01:12.9]} 22...
h5 {[%clk 0:01:23.4]} 23. Ne4 {[%clk 0:01:07.2]} 23... Qd7 {[%clk 0:00:52.4]}
24. Nc5 {[%clk 0:00:53.6]} 24... Qe8 {[%clk 0:00:52.2]} 25. Re2 {[%clk
0:00:39.5]} 25... Bd5 {[%clk 0:00:50.9]} 26. Qe1 {[%clk 0:00:38.8]} 26... Qf8
{[%clk 0:00:41.6]} 27. Qh4 {[%clk 0:00:32.5]} 27... Nd7 {[%clk 0:00:35.3]} 28.
Bxg7 {[%clk 0:00:32]} 28... Kxg7 {[%clk 0:00:27.7]} 29. Rxe7 {[%clk 0:00:22.5]}
29... Nxc5 {[%clk 0:00:26.6]} 30. dxc5 {[%clk 0:00:21.4]} 30... Be6 {[%clk
0:00:11.5]} 31. Rxb7 {[%clk 0:00:20.7]} 31... Qxc5+ {[%clk 0:00:10.1]} 32. Kh1
{[%clk 0:00:18.3]} 32... Rd2 {[%clk 0:00:10.2]} 33. Be4 {[%clk 0:00:14.6]} 33...
Rcd8 {[%clk 0:00:09.7]} 34. Re1 {[%clk 0:00:13.1]} 34... Rxb2 {[%clk 0:00:07.4]}
35. Rxb2 {[%clk 0:00:12.6]} 35... Qxa5 {[%clk 0:00:06.3]} 36. Rc2 {[%clk
0:00:07.7]} 36... Qc5 {[%clk 0:00:03.9]} 37. Qf2 {[%clk 0:00:07.2]} 37... Qc7
{[%clk 0:00:03.7]} 38. Rd2 {[%clk 0:00:06.2]} 38... Rb8 {[%clk 0:00:03.5]} 39.
Qd4+ {[%clk 0:00:06.2]} 39... Kg8 {[%clk 0:00:03.7]} 40. Bxg6 {[%clk 0:00:05.4]}
40... Qg3 {[%clk 0:00:03.7]} 41. Be4 {[%clk 0:00:02.4]} 41... a5 {[%clk
0:00:04]} 42. Qf2 {[%clk 0:00:02.6]} 42... Qg7 {[%clk 0:00:03.5]} 43. f4 {[%clk
0:00:02]} 43... Qxc3 {[%clk 0:00:03.6]} 44. f5 {[%clk 0:00:01.9]} 44... Bc8
{[%clk 0:00:03]} 45. Bf3 {[%clk 0:00:01.2]} 45... Qf6 {[%clk 0:00:02.7]} 46.
Qg3+ {[%clk 0:00:01.4]} 46... Kh7 {[%clk 0:00:02.3]} 47. Re8 {[%clk 0:00:00.5]}
47... Bxf5 {[%clk 0:00:02.5]} 0-1

[Event "Early-Titled-Tuesday-Blitz-May-07-2024"]
[Site "Chess.com"]
[Date "2024.05.07"]
[Round "1"]
[White "szachmistrz2500"]
[Black "ilqar_74"]
[Result "0-1"]
[WhiteElo "2474"]
[BlackElo "2844"]
[TimeControl "180+1"]
[EndTime "8:08:00 PDT"]
[Termination "ilqar_74 won on time"]

1. d4 {[%clk 0:03:00.9]} 1... Nf6 {[%clk 0:02:57.9]} 2. c4 {[%clk 0:02:59.6]}
2... g6 {[%clk 0:02:57.4]} 3. Nc3 {[%clk 0:02:58.6]} 3... Bg7 {[%clk 0:02:57.3]}
4. e4 {[%clk 0:02:58.6]} 4... d6 {[%clk 0:02:57.4]} 5. Nf3 {[%clk 0:02:58.3]}
5... O-O {[%clk 0:02:56.9]} 6. Be2 {[%clk 0:02:58.7]} 6... e5 {[%clk 0:02:57.4]}
7. O-O {[%clk 0:02:58.8]} 7... Nc6 {[%clk 0:02:56.2]} 8. d5 {[%clk 0:02:58.8]}
8... Ne7 {[%clk 0:02:56.8]} 9. Ne1 {[%clk 0:02:59.3]} 9... Ne8 {[%clk
0:02:55.4]} 10. f3 {[%clk 0:02:59.2]} 10... f5 {[%clk 0:02:55.8]} 11. Be3 {[%clk
0:02:59.6]} 11... f4 {[%clk 0:02:55.8]} 12. Bf2 {[%clk 0:02:59.7]} 12... g5
{[%clk 0:02:56.4]} 13. c5 {[%clk 0:02:59.8]} 13... Nf6 {[%clk 0:02:54.8]} 14. a4
{[%clk 0:02:59.2]} 14... h5 {[%clk 0:02:54.9]} 15. a5 {[%clk 0:02:59.1]} 15...
g4 {[%clk 0:02:53.2]} 16. cxd6 {[%clk 0:02:59]} 16... cxd6 {[%clk 0:02:52.9]}
17. Nb5 {[%clk 0:02:59.4]} 17... a6 {[%clk 0:02:45.8]} 18. Bb6 {[%clk
0:02:57.9]} 18... Qd7 {[%clk 0:02:45.5]} 19. Nc7 {[%clk 0:02:57.6]} 19... Rb8
{[%clk 0:02:43.4]} 20. Ne6 {[%clk 0:02:53.5]} 20... g3 {[%clk 0:02:39.8]} 21.
Rc1 {[%clk 0:02:41.7]} 21... Rf7 {[%clk 0:02:07.1]} 22. Rc7 {[%clk 0:02:29.5]}
22... Qe8 {[%clk 0:02:02.5]} 23. Nd3 {[%clk 0:02:20.7]} 23... Ng6 {[%clk
0:01:55.4]} 24. Qb3 {[%clk 0:02:14.8]} 24... Nh4 {[%clk 0:01:25.9]} 25. Rfc1
{[%clk 0:02:04.9]} 25... gxh2+ {[%clk 0:01:15.4]} 26. Kh1 {[%clk 0:02:04.3]}
26... Rxc7 {[%clk 0:01:12]} 27. Rxc7 {[%clk 0:01:53.1]} 27... Bh6 {[%clk
0:01:07.5]} 28. Qc4 {[%clk 0:01:46.9]} 28... Bd7 {[%clk 0:01:02.2]} 29. Qb4
{[%clk 0:01:30.4]} 29... Bxe6 {[%clk 0:00:55.6]} 30. dxe6 {[%clk 0:01:29.4]}
30... Bf8 {[%clk 0:00:55.9]} 31. Qc4 {[%clk 0:01:25.5]} 31... Be7 {[%clk
0:00:52.3]} 32. Bf1 {[%clk 0:01:18.7]} 32... Kh8 {[%clk 0:00:50.6]} 33. Nb4
{[%clk 0:01:15.2]} 33... Ng6 {[%clk 0:00:37.6]} 34. Ba7 {[%clk 0:01:10.3]} 34...
Ra8 {[%clk 0:00:36.8]} 35. Rxb7 {[%clk 0:01:09.9]} 35... h4 {[%clk 0:00:35.8]}
36. Bf2 {[%clk 0:00:57.8]} 36... Rc8 {[%clk 0:00:34.4]} 37. Rc7 {[%clk
0:00:56.4]} 37... Rxc7 {[%clk 0:00:26.9]} 38. Qxc7 {[%clk 0:00:55.8]} 38... Qa4
{[%clk 0:00:27.5]} 39. Nd3 {[%clk 0:00:23.5]} 39... Qd1 {[%clk 0:00:25.4]} 40.
Qc1 {[%clk 0:00:22.7]} 40... Qb3 {[%clk 0:00:22.5]} 41. Kxh2 {[%clk 0:00:17.3]}
41... Nh5 {[%clk 0:00:22.2]} 42. Ne1 {[%clk 0:00:08.1]} 42... Ng3 {[%clk
0:00:21.6]} 43. Bxa6 {[%clk 0:00:06.2]} 43... Qb4 {[%clk 0:00:21.1]} 44. Bf1
{[%clk 0:00:02.4]} 44... Qxa5 {[%clk 0:00:20.9]} 45. Kg1 {[%clk 0:00:01.9]}
45... Qb4 {[%clk 0:00:20.2]} 46. Nd3 {[%clk 0:00:01.4]} 46... Qb3 {[%clk
0:00:19.2]} 47. Qc3 {[%clk 0:00:01.1]} 47... Qxe6 {[%clk 0:00:19.2]} 48. Qc7
{[%clk 0:00:00.7]} 48... h3 {[%clk 0:00:19]} 49. gxh3 {[%clk 0:00:00.4]} 49...
Nh4 {[%clk 0:00:19.6]} 50. Bxg3 {[%clk 0:00:00.1]} 50... fxg3 {[%clk 0:00:20.5]}
0-1